[Event "Titled Tuesday Blitz November 15 Early 2022"]
[White "Abhishek, Das"]
[Black "Goroshkov, Maksym"]
[WhiteFideId "5013348"]
[BlackFideId "14142716"]
[WhiteElo "2230"]
[BlackElo "2257"]
[Result "1-0"]
[Round "01"]
[TimeControl "180+1"]
[Date "2022.11.16"]
[WhiteClock "0:00:19"]
[BlackClock "0:00:29"]

1. e4 {[%clk 0:02:58]}  e5 {[%clk 0:03:00]} 2. Nf3 {[%clk 0:02:58]}  Nc6 {[%clk 0:03:00]} 3. Nc3 {[%clk 0:02:57]}  Nf6 {[%clk 0:03:00]} 4. Bb5 {[%clk 0:02:57]}  Bc5 {[%clk 0:02:58]} 5. O-O {[%clk 0:02:52]}  O-O {[%clk 0:02:57]} 6. Nxe5 {[%clk 0:02:48]}  Nxe5 {[%clk 0:02:56]} 7. d4 {[%clk 0:02:46]}  Bd6 {[%clk 0:02:50]} 8. f4 {[%clk 0:02:45]}  Ng6 {[%clk 0:02:44]} 9. e5 {[%clk 0:02:45]}  c6 {[%clk 0:02:36]} 10. Bd3 {[%clk 0:01:47]}  Bb4 {[%clk 0:02:33]} 11. f5 {[%clk 0:01:44]}  Nh8 {[%clk 0:01:58]} 12. Bg5 {[%clk 0:01:21]}  Be7 {[%clk 0:01:57]} 13. exf6 {[%clk 0:01:20]}  Bxf6 {[%clk 0:01:58]} 14. Bxf6 {[%clk 0:01:20]}  Qxf6 {[%clk 0:01:58]} 15. Kh1 {[%clk 0:00:57]}  d5 {[%clk 0:01:56]} 16. Ne2 {[%clk 0:00:54]}  Qd6 {[%clk 0:01:44]} 17. f6 {[%clk 0:00:53]}  gxf6 {[%clk 0:01:36]} 18. Ng3 {[%clk 0:00:44]}  Ng6 {[%clk 0:01:35]} 19. Qd2 {[%clk 0:00:36]}  Bg4 {[%clk 0:01:29]} 20. Qh6 {[%clk 0:00:28]}  f5 {[%clk 0:01:23]} 21. Bxf5 {[%clk 0:00:26]}  Bxf5 {[%clk 0:01:22]} 22. Nh5 {[%clk 0:00:20]}  Qf6 {[%clk 0:00:28]} 23. Nxf6+ {[%clk 0:00:19]}  Kh8 {[%clk 0:00:29]} 24. Qxh7# {[%clk 0:00:19]} 1-0


[Site "https://www.chess.com"]

[Event "Titled Tuesday Blitz November 15 Early 2022"]
[White "Ambartsumova, Karina"]
[Black "Johnson, Ben"]
[WhiteFideId "4166299"]
[BlackFideId "2010917"]
[WhiteElo "2319"]
[BlackElo "2122"]
[Result "1-0"]
[Round "01"]
[TimeControl "180+1"]
[Date "2022.11.16"]
[WhiteClock "0:01:20"]
[BlackClock "0:00:04"]

1. Nf3 {[%clk 0:02:53]}  d5 {[%clk 0:02:59]} 2. c4 {[%clk 0:02:49]}  e6 {[%clk 0:02:58]} 3. e3 {[%clk 0:02:49]}  Nf6 {[%clk 0:02:56]} 4. Nc3 {[%clk 0:02:49]}  c5 {[%clk 0:02:52]} 5. cxd5 {[%clk 0:02:48]}  exd5 {[%clk 0:02:52]} 6. d4 {[%clk 0:02:48]}  Nc6 {[%clk 0:02:52]} 7. Be2 {[%clk 0:02:43]}  Be7 {[%clk 0:02:39]} 8. O-O {[%clk 0:02:43]}  O-O {[%clk 0:02:39]} 9. b3 {[%clk 0:02:40]}  b6 {[%clk 0:02:35]} 10. Bb2 {[%clk 0:02:40]}  Re8 {[%clk 0:02:19]} 11. dxc5 {[%clk 0:02:33]}  bxc5 {[%clk 0:02:19]} 12. Rc1 {[%clk 0:02:31]}  Bf5 {[%clk 0:01:49]} 13. Na4 {[%clk 0:02:24]}  Ne4 {[%clk 0:01:42]} 14. Bb5 {[%clk 0:02:14]}  Rc8 {[%clk 0:00:49]} 15. Ne5 {[%clk 0:02:01]}  Nxe5 {[%clk 0:00:38]} 16. Bxe8 {[%clk 0:01:59]}  Qxe8 {[%clk 0:00:39]} 17. Bxe5 {[%clk 0:01:58]}  Be6 {[%clk 0:00:20]} 18. Nc3 {[%clk 0:01:38]}  Nf6 {[%clk 0:00:15]} 19. Bxf6 {[%clk 0:01:29]}  Bxf6 {[%clk 0:00:16]} 20. Nxd5 {[%clk 0:01:29]}  Be5 {[%clk 0:00:16]} 21. Nf4 {[%clk 0:01:26]}  Bf5 {[%clk 0:00:12]} 22. Qf3 {[%clk 0:01:24]}  g6 {[%clk 0:00:09]} 23. Rfd1 {[%clk 0:01:23]}  Bg7 {[%clk 0:00:07]} 24. h3 {[%clk 0:01:22]}  Be4 {[%clk 0:00:08]} 25. Qe2 {[%clk 0:01:22]}  Be5 {[%clk 0:00:06]} 26. Qc4 {[%clk 0:01:21]}  Qe7 {[%clk 0:00:04]} 27. Qxe4 {[%clk 0:01:20]} 1-0


[Site "https://www.chess.com"]

[Event "Titled Tuesday Blitz November 15 Early 2022"]
[White "Antonova, Nadezhda"]
[Black "Budrewicz, Krzysztof"]
[WhiteFideId "14700182"]
[BlackFideId "1127950"]
[WhiteElo "1813"]
[BlackElo "2187"]
[Result "0-1"]
[Round "01"]
[TimeControl "180+1"]
[Date "2022.11.16"]
[WhiteClock "0:00:00"]
[BlackClock "0:01:52"]

1. Nf3 {[%clk 0:02:57]}  g6 {[%clk 0:02:59]} 2. d4 {[%clk 0:02:57]}  Bg7 {[%clk 0:03:00]} 3. g3 {[%clk 0:02:55]}  Nf6 {[%clk 0:02:59]} 4. Bg2 {[%clk 0:02:53]}  O-O {[%clk 0:03:00]} 5. O-O {[%clk 0:02:53]}  d6 {[%clk 0:03:00]} 6. b3 {[%clk 0:02:52]}  a5 {[%clk 0:02:59]} 7. Bb2 {[%clk 0:02:44]}  a4 {[%clk 0:02:59]} 8. Re1 {[%clk 0:02:34]}  Nc6 {[%clk 0:02:57]} 9. Qc1 {[%clk 0:02:30]}  Bf5 {[%clk 0:02:54]} 10. Nc3 {[%clk 0:02:28]}  axb3 {[%clk 0:02:51]} 11. axb3 {[%clk 0:02:22]}  Rxa1 {[%clk 0:02:51]} 12. Bxa1 {[%clk 0:02:21]}  Ne4 {[%clk 0:02:50]} 13. e3 {[%clk 0:02:11]}  Qa8 {[%clk 0:02:47]} 14. Nh4 {[%clk 0:02:06]}  Nxc3 {[%clk 0:02:41]} 15. Nxf5 {[%clk 0:01:19]}  Na2 {[%clk 0:02:36]} 16. Nxe7+ {[%clk 0:00:50]}  Nxe7 {[%clk 0:02:34]} 17. Qb1 {[%clk 0:00:50]}  Nb4 {[%clk 0:02:29]} 18. c3 {[%clk 0:00:49]}  Nbc6 {[%clk 0:02:27]} 19. Bb2 {[%clk 0:00:49]}  d5 {[%clk 0:02:24]} 20. c4 {[%clk 0:00:47]}  Rd8 {[%clk 0:02:21]} 21. Qc2 {[%clk 0:00:45]}  Nb4 {[%clk 0:02:16]} 22. Qd2 {[%clk 0:00:43]}  Nec6 {[%clk 0:02:13]} 23. Bc3 {[%clk 0:00:42]}  Qa3 {[%clk 0:02:06]} 24. Qb2 {[%clk 0:00:20]}  Qxb2 {[%clk 0:02:05]} 25. Bxb2 {[%clk 0:00:21]}  Nd3 {[%clk 0:02:06]} 26. Re2 {[%clk 0:00:20]}  Nxb2 {[%clk 0:02:06]} 27. Rxb2 {[%clk 0:00:21]}  Nb4 {[%clk 0:02:06]} 28. Rb1 {[%clk 0:00:16]}  Bf6 {[%clk 0:01:53]} 29. Rc1 {[%clk 0:00:14]}  c6 {[%clk 0:01:53]} 30. Ra1 {[%clk 0:00:14]}  c5 {[%clk 0:01:52]} 31. cxd5 {[%clk 0:00:08]}  cxd4 {[%clk 0:01:53]} 32. exd4 {[%clk 0:00:06]}  Bxd4 {[%clk 0:01:53]} 33. Rd1 {[%clk 0:00:03]}  Bc5 {[%clk 0:01:53]} 34. h3 {[%clk 0:00:01]}  b6 {[%clk 0:01:53]} 35. Kh2 {[%clk 0:00:01]}  Bxf2 {[%clk 0:01:52]} 36. g4 {[%clk 0:00:00]}  Bc5 {[%clk 0:01:52]} 0-1


[Site "https://www.chess.com"]

[Event "Titled Tuesday Blitz November 15 Early 2022"]
[White "Aponte Ramos, Argimiro"]
[Black "Abrahamyan, Tatev"]
[WhiteFideId "3900568"]
[BlackFideId "13301918"]
[WhiteElo "2216"]
[BlackElo "2347"]
[Result "0-1"]
[Round "01"]
[TimeControl "180+1"]
[Date "2022.11.16"]
[WhiteClock "0:00:05"]
[BlackClock "0:00:15"]

1. e4 {[%clk 0:02:53]}  e6 {[%clk 0:02:59]} 2. d4 {[%clk 0:02:52]}  d5 {[%clk 0:02:59]} 3. e5 {[%clk 0:02:51]}  c5 {[%clk 0:02:56]} 4. c3 {[%clk 0:02:52]}  Nc6 {[%clk 0:02:55]} 5. Nf3 {[%clk 0:02:53]}  Qb6 {[%clk 0:02:55]} 6. Bd3 {[%clk 0:02:53]}  Bd7 {[%clk 0:02:54]} 7. O-O {[%clk 0:02:52]}  cxd4 {[%clk 0:02:54]} 8. cxd4 {[%clk 0:02:53]}  Nxd4 {[%clk 0:02:54]} 9. Nbd2 {[%clk 0:02:53]}  Rc8 {[%clk 0:02:52]} 10. Nxd4 {[%clk 0:02:52]}  Qxd4 {[%clk 0:02:52]} 11. Nf3 {[%clk 0:02:53]}  Qb6 {[%clk 0:02:52]} 12. b4 {[%clk 0:02:52]}  Bxb4 {[%clk 0:02:45]} 13. Rb1 {[%clk 0:02:51]}  Qa5 {[%clk 0:02:44]} 14. a3 {[%clk 0:02:47]}  Bc5 {[%clk 0:02:44]} 15. Rxb7 {[%clk 0:02:42]}  Bc6 {[%clk 0:02:38]} 16. Bd2 {[%clk 0:02:04]}  Qxa3 {[%clk 0:02:20]} 17. Rb3 {[%clk 0:02:01]}  Qa4 {[%clk 0:01:52]} 18. Qb1 {[%clk 0:01:51]}  Ne7 {[%clk 0:01:44]} 19. Rc1 {[%clk 0:01:39]}  Bb6 {[%clk 0:01:35]} 20. Rxc6 {[%clk 0:01:28]}  Nxc6 {[%clk 0:01:28]} 21. Bb5 {[%clk 0:01:28]}  Qe4 {[%clk 0:01:13]} 22. Qc1 {[%clk 0:01:17]}  d4 {[%clk 0:01:08]} 23. Bb4 {[%clk 0:00:59]}  Qd5 {[%clk 0:00:42]} 24. Ba4 {[%clk 0:00:49]}  h6 {[%clk 0:00:28]} 25. Bd6 {[%clk 0:00:48]}  Kd8 {[%clk 0:00:20]} 26. Rb5 {[%clk 0:00:37]}  Qe4 {[%clk 0:00:17]} 27. Nd2 {[%clk 0:00:24]}  Qd3 {[%clk 0:00:16]} 28. Rb3 {[%clk 0:00:15]}  Nxe5 {[%clk 0:00:16]} 29. Qd1 {[%clk 0:00:10]}  Qc2 {[%clk 0:00:16]} 30. Qxc2 {[%clk 0:00:08]}  Rxc2 {[%clk 0:00:16]} 31. Nf1 {[%clk 0:00:07]}  Nc4 {[%clk 0:00:15]} 32. Rxb6 {[%clk 0:00:06]}  axb6 {[%clk 0:00:15]} 33. Bxc2 {[%clk 0:00:05]}  Nxd6 {[%clk 0:00:15]} 0-1


[Site "https://www.chess.com"]

[Event "Titled Tuesday Blitz November 15 Early 2022"]
[White "Arbunic Castro, Giovanna"]
[Black "Buksa, Nataliya"]
[WhiteFideId "3400549"]
[BlackFideId "14123622"]
[WhiteElo "1889"]
[BlackElo "2313"]
[Result "0-1"]
[Round "01"]
[TimeControl "180+1"]
[Date "2022.11.16"]
[WhiteClock "0:00:28"]
[BlackClock "0:01:23"]

1. e4 {[%clk 0:02:55]}  c5 {[%clk 0:02:59]} 2. g3 {[%clk 0:02:54]}  Nc6 {[%clk 0:02:59]} 3. Bg2 {[%clk 0:02:54]}  g6 {[%clk 0:03:00]} 4. Ne2 {[%clk 0:02:53]}  Bg7 {[%clk 0:03:01]} 5. c3 {[%clk 0:02:53]}  d6 {[%clk 0:03:01]} 6. O-O {[%clk 0:02:53]}  e5 {[%clk 0:03:01]} 7. d3 {[%clk 0:02:51]}  Nge7 {[%clk 0:03:01]} 8. Be3 {[%clk 0:02:51]}  O-O {[%clk 0:03:02]} 9. d4 {[%clk 0:02:51]}  exd4 {[%clk 0:03:02]} 10. cxd4 {[%clk 0:02:49]}  b6 {[%clk 0:02:55]} 11. Nbc3 {[%clk 0:02:45]}  Bb7 {[%clk 0:02:54]} 12. Qd2 {[%clk 0:02:43]}  cxd4 {[%clk 0:02:53]} 13. Nxd4 {[%clk 0:02:42]}  Ne5 {[%clk 0:02:53]} 14. b3 {[%clk 0:02:40]}  a6 {[%clk 0:02:53]} 15. Rad1 {[%clk 0:02:33]}  Qc7 {[%clk 0:02:51]} 16. Rc1 {[%clk 0:02:29]}  Qd7 {[%clk 0:02:49]} 17. Rfd1 {[%clk 0:02:27]}  Rfd8 {[%clk 0:02:49]} 18. h3 {[%clk 0:01:59]}  Rab8 {[%clk 0:02:46]} 19. f4 {[%clk 0:01:57]}  N5c6 {[%clk 0:02:47]} 20. Nd5 {[%clk 0:01:52]}  Nxd5 {[%clk 0:02:45]} 21. exd5 {[%clk 0:01:50]}  Nxd4 {[%clk 0:02:42]} 22. Bxd4 {[%clk 0:01:49]}  Qb5 {[%clk 0:02:38]} 23. Bxg7 {[%clk 0:01:35]}  Kxg7 {[%clk 0:02:37]} 24. Qd4+ {[%clk 0:01:32]}  Kg8 {[%clk 0:02:36]} 25. Rc7 {[%clk 0:01:31]}  Qe2 {[%clk 0:02:22]} 26. Rd2 {[%clk 0:01:26]}  Qe1+ {[%clk 0:02:21]} 27. Kh2 {[%clk 0:01:25]}  Rf8 {[%clk 0:02:19]} 28. Rdc2 {[%clk 0:01:17]}  Bc8 {[%clk 0:02:12]} 29. Qf6 {[%clk 0:01:11]}  Bf5 {[%clk 0:02:10]} 30. Qc3 {[%clk 0:00:57]}  Qe8 {[%clk 0:01:31]} 31. Qc6 {[%clk 0:00:52]}  Bxc2 {[%clk 0:01:30]} 32. Qxc2 {[%clk 0:00:47]}  Rc8 {[%clk 0:01:25]} 33. Qc6 {[%clk 0:00:40]}  Qxc6 {[%clk 0:01:22]} 34. Rxc6 {[%clk 0:00:39]}  Rxc6 {[%clk 0:01:22]} 35. dxc6 {[%clk 0:00:38]}  Rc8 {[%clk 0:01:22]} 36. Bd5 {[%clk 0:00:36]}  Kf8 {[%clk 0:01:23]} 37. Kg2 {[%clk 0:00:34]}  Ke7 {[%clk 0:01:23]} 38. Kf3 {[%clk 0:00:34]}  Kd8 {[%clk 0:01:24]} 39. Ke4 {[%clk 0:00:31]}  Kc7 {[%clk 0:01:24]} 40. Kd4 {[%clk 0:00:31]}  Re8 {[%clk 0:01:24]} 41. Bxf7 {[%clk 0:00:29]}  Re2 {[%clk 0:01:24]} 42. Bd5 {[%clk 0:00:28]}  Rxa2 {[%clk 0:01:23]} 0-1


[Site "https://www.chess.com"]

[Event "Titled Tuesday Blitz November 15 Early 2022"]
[White "Avila Rodriguez, Joshua Ad"]
[Black "Salinas Herrera, Pablo"]
[WhiteFideId "5126444"]
[BlackFideId "3407128"]
[WhiteElo "2125"]
[BlackElo "2557"]
[Result "0-1"]
[Round "01"]
[TimeControl "180+1"]
[Date "2022.11.16"]
[WhiteClock "0:00:06"]
[BlackClock "0:01:25"]

1. e4 {[%clk 0:02:47]}  c5 {[%clk 0:02:59]} 2. Nf3 {[%clk 0:02:47]}  e6 {[%clk 0:02:58]} 3. d4 {[%clk 0:02:47]}  cxd4 {[%clk 0:02:58]} 4. Nxd4 {[%clk 0:02:47]}  a6 {[%clk 0:02:59]} 5. Bd3 {[%clk 0:02:46]}  Bc5 {[%clk 0:02:58]} 6. Nb3 {[%clk 0:02:45]}  Ba7 {[%clk 0:02:58]} 7. Qe2 {[%clk 0:02:42]}  Nc6 {[%clk 0:02:58]} 8. Be3 {[%clk 0:02:41]}  d6 {[%clk 0:02:55]} 9. Nc3 {[%clk 0:02:22]}  Nf6 {[%clk 0:02:54]} 10. O-O {[%clk 0:02:18]}  O-O {[%clk 0:02:52]} 11. Rad1 {[%clk 0:02:05]}  e5 {[%clk 0:02:51]} 12. Bxa7 {[%clk 0:02:01]}  Rxa7 {[%clk 0:02:36]} 13. a4 {[%clk 0:01:45]}  Be6 {[%clk 0:02:33]} 14. Bc4 {[%clk 0:01:41]}  Qe7 {[%clk 0:02:26]} 15. a5 {[%clk 0:01:28]}  Raa8 {[%clk 0:02:17]} 16. Nd5 {[%clk 0:01:21]}  Bxd5 {[%clk 0:02:14]} 17. Bxd5 {[%clk 0:01:18]}  Rac8 {[%clk 0:02:14]} 18. c3 {[%clk 0:01:17]}  Qc7 {[%clk 0:02:06]} 19. Bxc6 {[%clk 0:01:10]}  Qxc6 {[%clk 0:02:05]} 20. Rfe1 {[%clk 0:01:04]}  Rfd8 {[%clk 0:02:05]} 21. Nd2 {[%clk 0:00:46]}  d5 {[%clk 0:02:01]} 22. exd5 {[%clk 0:00:46]}  Rxd5 {[%clk 0:02:01]} 23. Nf1 {[%clk 0:00:45]}  Rxa5 {[%clk 0:01:58]} 24. Ng3 {[%clk 0:00:41]}  g6 {[%clk 0:01:45]} 25. Rd2 {[%clk 0:00:33]}  Re8 {[%clk 0:01:37]} 26. Red1 {[%clk 0:00:33]}  Rd5 {[%clk 0:01:37]} 27. Rxd5 {[%clk 0:00:32]}  Nxd5 {[%clk 0:01:37]} 28. Qe4 {[%clk 0:00:30]}  Nf4 {[%clk 0:01:25]} 29. Qxc6 {[%clk 0:00:29]}  bxc6 {[%clk 0:01:26]} 30. Rd6 {[%clk 0:00:27]}  Rb8 {[%clk 0:01:26]} 31. b4 {[%clk 0:00:22]}  a5 {[%clk 0:01:25]} 32. Rxc6 {[%clk 0:00:20]}  axb4 {[%clk 0:01:25]} 33. cxb4 {[%clk 0:00:21]}  Rxb4 {[%clk 0:01:26]} 34. h3 {[%clk 0:00:20]}  h5 {[%clk 0:01:26]} 35. Rc8+ {[%clk 0:00:15]}  Kg7 {[%clk 0:01:26]} 36. Rc1 {[%clk 0:00:15]}  h4 {[%clk 0:01:25]} 37. Re1 {[%clk 0:00:06]}  hxg3 {[%clk 0:01:24]} 38. fxg3 {[%clk 0:00:06]}  Nd3 {[%clk 0:01:25]} 0-1


[Site "https://www.chess.com"]

[Event "Titled Tuesday Blitz November 15 Early 2022"]
[White "Baches Garcia, Guillermo"]
[Black "Maksimovic, Bojan"]
[WhiteFideId "2209764"]
[BlackFideId "14408120"]
[WhiteElo "2430"]
[BlackElo "2447"]
[Result "0-1"]
[Round "01"]
[TimeControl "180+1"]
[Date "2022.11.16"]
[WhiteClock "0:00:16"]
[BlackClock "0:00:45"]

1. e4 {[%clk 0:03:00]}  d6 {[%clk 0:02:58]} 2. d4 {[%clk 0:03:00]}  Nf6 {[%clk 0:02:58]} 3. f3 {[%clk 0:03:00]}  e5 {[%clk 0:02:58]} 4. Ne2 {[%clk 0:03:00]}  Be7 {[%clk 0:02:58]} 5. c4 {[%clk 0:03:00]}  O-O {[%clk 0:02:54]} 6. Nbc3 {[%clk 0:03:01]}  c6 {[%clk 0:02:53]} 7. Be3 {[%clk 0:03:01]}  Nbd7 {[%clk 0:02:51]} 8. Qd2 {[%clk 0:03:00]}  a6 {[%clk 0:02:50]} 9. g4 {[%clk 0:02:46]}  b5 {[%clk 0:02:48]} 10. g5 {[%clk 0:02:45]}  Nh5 {[%clk 0:02:45]} 11. Ng3 {[%clk 0:02:33]}  Nf4 {[%clk 0:02:45]} 12. h4 {[%clk 0:02:32]}  b4 {[%clk 0:02:36]} 13. Nce2 {[%clk 0:02:27]}  Ne6 {[%clk 0:02:35]} 14. Nf5 {[%clk 0:02:18]}  g6 {[%clk 0:02:29]} 15. Nxe7+ {[%clk 0:02:16]}  Qxe7 {[%clk 0:02:30]} 16. Qxb4 {[%clk 0:02:13]}  exd4 {[%clk 0:02:22]} 17. Bf2 {[%clk 0:02:03]}  Ne5 {[%clk 0:02:11]} 18. Ng1 {[%clk 0:01:45]}  c5 {[%clk 0:02:06]} 19. Qd2 {[%clk 0:01:45]}  Rb8 {[%clk 0:01:59]} 20. b3 {[%clk 0:01:43]}  Bd7 {[%clk 0:01:55]} 21. f4 {[%clk 0:01:35]}  Ng4 {[%clk 0:01:54]} 22. Bd3 {[%clk 0:01:26]}  Bc6 {[%clk 0:01:50]} 23. Nh3 {[%clk 0:01:15]}  Ng7 {[%clk 0:01:42]} 24. Qe2 {[%clk 0:01:06]}  Nxf2 {[%clk 0:01:38]} 25. Nxf2 {[%clk 0:01:06]}  Rfe8 {[%clk 0:01:32]} 26. Kd2 {[%clk 0:00:51]}  a5 {[%clk 0:01:25]} 27. h5 {[%clk 0:00:42]}  a4 {[%clk 0:01:12]} 28. hxg6 {[%clk 0:00:38]}  fxg6 {[%clk 0:01:12]} 29. Ng4 {[%clk 0:00:35]}  Rf8 {[%clk 0:01:02]} 30. Nf6+ {[%clk 0:00:22]}  Rxf6 {[%clk 0:01:01]} 31. gxf6 {[%clk 0:00:23]}  Qxf6 {[%clk 0:01:02]} 32. Qh2 {[%clk 0:00:22]}  Nh5 {[%clk 0:00:59]} 33. f5 {[%clk 0:00:21]}  axb3 {[%clk 0:00:56]} 34. axb3 {[%clk 0:00:22]}  Rxb3 {[%clk 0:00:54]} 35. Rab1 {[%clk 0:00:20]}  Qg5+ {[%clk 0:00:52]} 36. Kc2 {[%clk 0:00:18]}  Rc3+ {[%clk 0:00:51]} 37. Kb2 {[%clk 0:00:16]}  Rxd3 {[%clk 0:00:46]} 38. Qxd6 {[%clk 0:00:16]}  Qd2+ {[%clk 0:00:45]} 0-1


[Site "https://www.chess.com"]

[Event "Titled Tuesday Blitz November 15 Early 2022"]
[White "Bacrot, Etienne"]
[Black "Gheorghiu, Calin"]
[WhiteFideId "605506"]
[BlackFideId "1200305"]
[WhiteElo "2666"]
[BlackElo "2225"]
[Result "1-0"]
[Round "01"]
[TimeControl "180+1"]
[Date "2022.11.16"]
[WhiteClock "0:00:13"]
[BlackClock "0:00:01"]

1. e4 {[%clk 0:02:40]}  e6 {[%clk 0:02:55]} 2. Nc3 {[%clk 0:02:39]}  d5 {[%clk 0:02:55]} 3. d4 {[%clk 0:02:38]}  Bb4 {[%clk 0:02:52]} 4. e5 {[%clk 0:02:37]}  c5 {[%clk 0:02:51]} 5. Bd2 {[%clk 0:02:37]}  a6 {[%clk 0:02:21]} 6. Qg4 {[%clk 0:02:34]}  Ne7 {[%clk 0:02:14]} 7. dxc5 {[%clk 0:02:31]}  Bxc3 {[%clk 0:01:56]} 8. Bxc3 {[%clk 0:02:30]}  Nf5 {[%clk 0:01:42]} 9. Bd3 {[%clk 0:02:29]}  h5 {[%clk 0:01:30]} 10. Qf4 {[%clk 0:02:19]}  Nc6 {[%clk 0:01:18]} 11. Nf3 {[%clk 0:02:19]}  h4 {[%clk 0:01:02]} 12. O-O-O {[%clk 0:02:15]}  Nce7 {[%clk 0:00:31]} 13. g4 {[%clk 0:02:12]}  Ng6 {[%clk 0:00:23]} 14. Qd2 {[%clk 0:02:11]}  Nfe7 {[%clk 0:00:20]} 15. Ng5 {[%clk 0:01:44]}  Bd7 {[%clk 0:00:12]} 16. f4 {[%clk 0:01:43]}  Qc7 {[%clk 0:00:13]} 17. Rhe1 {[%clk 0:01:31]}  Rf8 {[%clk 0:00:05]} 18. f5 {[%clk 0:01:01]}  exf5 {[%clk 0:00:06]} 19. gxf5 {[%clk 0:01:01]}  Bxf5 {[%clk 0:00:06]} 20. Bxf5 {[%clk 0:00:54]}  Nxf5 {[%clk 0:00:07]} 21. Qxd5 {[%clk 0:00:52]}  Nge7 {[%clk 0:00:06]} 22. Qf3 {[%clk 0:00:42]}  Qc6 {[%clk 0:00:05]} 23. Ne4 {[%clk 0:00:32]}  Rh8 {[%clk 0:00:02]} 24. e6 {[%clk 0:00:23]}  fxe6 {[%clk 0:00:01]} 25. Qg4 {[%clk 0:00:17]}  Rd8 {[%clk 0:00:01]} 26. Nd6+ {[%clk 0:00:16]}  Nxd6 {[%clk 0:00:01]} 27. cxd6 {[%clk 0:00:17]}  Rxd6 {[%clk 0:00:02]} 28. Qxg7 {[%clk 0:00:14]}  Rg8 {[%clk 0:00:02]} 29. Qe5 {[%clk 0:00:13]}  Rxd1+ {[%clk 0:00:02]} 30. Rxd1 {[%clk 0:00:14]}  Nd5 {[%clk 0:00:02]} 31. Qh5+ {[%clk 0:00:13]}  Kd7 {[%clk 0:00:02]} 32. Qh7+ {[%clk 0:00:13]}  Kd6 {[%clk 0:00:02]} 33. Qxg8 {[%clk 0:00:13]}  Qc5 {[%clk 0:00:01]} 34. Qf8+ {[%clk 0:00:13]} 1-0


[Site "https://www.chess.com"]

[Event "Titled Tuesday Blitz November 15 Early 2022"]
[White "Besedes, Danilo"]
[Black "Indjic, Aleksandar"]
[WhiteFideId "946796"]
[BlackFideId "911925"]
[WhiteElo "2352"]
[BlackElo "2592"]
[Result "0-1"]
[Round "01"]
[TimeControl "180+1"]
[Date "2022.11.15"]
[WhiteClock "0:00:20"]
[BlackClock "0:00:58"]

1. Nf3 {[%clk 0:02:59]}  g6 {[%clk 0:02:55]} 2. g3 {[%clk 0:02:59]}  Bg7 {[%clk 0:02:55]} 3. Bg2 {[%clk 0:02:59]}  e5 {[%clk 0:02:55]} 4. d3 {[%clk 0:02:59]}  d5 {[%clk 0:02:55]} 5. O-O {[%clk 0:02:59]}  Ne7 {[%clk 0:02:55]} 6. c4 {[%clk 0:02:58]}  c6 {[%clk 0:02:52]} 7. Nc3 {[%clk 0:02:57]}  O-O {[%clk 0:02:51]} 8. Bd2 {[%clk 0:02:56]}  h6 {[%clk 0:02:48]} 9. cxd5 {[%clk 0:02:37]}  cxd5 {[%clk 0:02:48]} 10. e4 {[%clk 0:02:37]}  d4 {[%clk 0:02:47]} 11. Nb5 {[%clk 0:02:28]}  a6 {[%clk 0:02:43]} 12. Na3 {[%clk 0:02:27]}  b5 {[%clk 0:02:43]} 13. Rc1 {[%clk 0:02:23]}  Nbc6 {[%clk 0:02:41]} 14. Nc2 {[%clk 0:02:23]}  a5 {[%clk 0:02:23]} 15. b4 {[%clk 0:02:19]}  Be6 {[%clk 0:01:53]} 16. bxa5 {[%clk 0:01:53]}  Qd6 {[%clk 0:01:53]} 17. Rb1 {[%clk 0:01:34]}  Rfb8 {[%clk 0:01:51]} 18. a3 {[%clk 0:01:33]}  Nxa5 {[%clk 0:01:49]} 19. Nb4 {[%clk 0:01:26]}  Nac6 {[%clk 0:01:47]} 20. Qc1 {[%clk 0:01:21]}  Kh7 {[%clk 0:01:41]} 21. Qb2 {[%clk 0:01:13]}  Na5 {[%clk 0:01:39]} 22. Rfc1 {[%clk 0:00:29]}  Nb3 {[%clk 0:01:38]} 23. Rc2 {[%clk 0:00:29]}  Nxd2 {[%clk 0:01:29]} 24. Nxd2 {[%clk 0:00:28]}  h5 {[%clk 0:01:25]} 25. Nb3 {[%clk 0:00:25]}  Rc8 {[%clk 0:01:22]} 26. Rbc1 {[%clk 0:00:23]}  Bh6 {[%clk 0:01:19]} 27. Rxc8 {[%clk 0:00:22]}  Rxc8 {[%clk 0:01:13]} 28. Rxc8 {[%clk 0:00:21]}  Nxc8 {[%clk 0:01:14]} 29. Bf1 {[%clk 0:00:19]}  Nb6 {[%clk 0:01:14]} 30. Be2 {[%clk 0:00:19]}  Na4 {[%clk 0:01:13]} 31. Qc2 {[%clk 0:00:19]}  Nc3 {[%clk 0:01:14]} 32. Bf1 {[%clk 0:00:19]}  h4 {[%clk 0:01:11]} 33. Bg2 {[%clk 0:00:19]}  h3 {[%clk 0:01:10]} 34. Bf3 {[%clk 0:00:19]}  Qd7 {[%clk 0:01:09]} 35. Qb2 {[%clk 0:00:19]}  Bg4 {[%clk 0:01:02]} 36. Nd2 {[%clk 0:00:20]}  Bxd2 {[%clk 0:00:58]} 0-1


[Site "https://www.chess.com"]

[Event "Titled Tuesday Blitz November 15 Early 2022"]
[White "Bluebaum, Matthias"]
[Black "Miszler, Levente"]
[WhiteFideId "24651516"]
[BlackFideId "763276"]
[WhiteElo "2633"]
[BlackElo "2176"]
[Result "1-0"]
[Round "01"]
[TimeControl "180+1"]
[Date "2022.11.15"]
[WhiteClock "0:02:31"]
[BlackClock "0:00:09"]

1. d4 {[%clk 0:03:00]}  e6 {[%clk 0:02:58]} 2. c4 {[%clk 0:03:01]}  Nf6 {[%clk 0:02:54]} 3. Nc3 {[%clk 0:03:01]}  d5 {[%clk 0:02:53]} 4. cxd5 {[%clk 0:03:01]}  exd5 {[%clk 0:02:54]} 5. Bg5 {[%clk 0:03:02]}  c6 {[%clk 0:02:39]} 6. e3 {[%clk 0:03:02]}  Be7 {[%clk 0:02:39]} 7. Bd3 {[%clk 0:03:02]}  O-O {[%clk 0:02:39]} 8. h3 {[%clk 0:02:58]}  h6 {[%clk 0:02:37]} 9. Bf4 {[%clk 0:02:58]}  Re8 {[%clk 0:02:29]} 10. Qc2 {[%clk 0:02:54]}  Nbd7 {[%clk 0:02:28]} 11. Nf3 {[%clk 0:02:55]}  Nf8 {[%clk 0:02:26]} 12. Bh2 {[%clk 0:02:52]}  Bd6 {[%clk 0:02:26]} 13. Ne5 {[%clk 0:02:52]}  Qc7 {[%clk 0:02:20]} 14. Rc1 {[%clk 0:02:51]}  a6 {[%clk 0:02:17]} 15. O-O {[%clk 0:02:51]}  N8d7 {[%clk 0:02:14]} 16. f4 {[%clk 0:02:51]}  c5 {[%clk 0:02:06]} 17. Qf2 {[%clk 0:02:50]}  cxd4 {[%clk 0:01:57]} 18. exd4 {[%clk 0:02:49]}  Qb6 {[%clk 0:01:57]} 19. Kh1 {[%clk 0:02:43]}  Nf8 {[%clk 0:01:25]} 20. f5 {[%clk 0:02:43]}  N8d7 {[%clk 0:01:16]} 21. Nxd5 {[%clk 0:02:43]}  Nxd5 {[%clk 0:01:09]} 22. Nc4 {[%clk 0:02:44]}  Qb4 {[%clk 0:00:39]} 23. Nxd6 {[%clk 0:02:40]}  Rf8 {[%clk 0:00:39]} 24. a3 {[%clk 0:02:35]}  Qa4 {[%clk 0:00:33]} 25. Rc4 {[%clk 0:02:31]}  Qa5 {[%clk 0:00:29]} 26. Rfc1 {[%clk 0:02:31]}  N7b6 {[%clk 0:00:23]} 27. Rc5 {[%clk 0:02:32]}  Qa4 {[%clk 0:00:24]} 28. Be4 {[%clk 0:02:31]}  Nf6 {[%clk 0:00:19]} 29. Bf3 {[%clk 0:02:32]}  Rd8 {[%clk 0:00:16]} 30. Be5 {[%clk 0:02:32]}  Bd7 {[%clk 0:00:09]} 31. Qg3 {[%clk 0:02:31]} 1-0


[Site "https://www.chess.com"]